Workbook

Sheet Sheet1
C1: Olivier | D1: Kendrick | E1: Ship | H1: Vasco
C2: Stone | D2: Stone | E2: Peg Leg | H2: Cocoa | I2: Market
B3: Req'd : | C3: 1710 | D3: 80 | E3: 398 | F3: 51 | H3: 50 | I3: =H5 -> 28
B4: Delv'd : | C4: 0 | D4: 0 | E4: =120+226 -> 346 | F4: 0 | H4: 22 | I4: 0
C5: =C3-C4 -> 1710 | D5: =D3-D4 -> 80 | E5: 52 | F5: 51 | H5: =H3-H4 -> 28 | I5: =I3-I4 -> 28
B6: Mult : | C6: 6 | D6: 3 | E6: 2 | F6: 15 | H6: 3 | I6: 1
C7: =IF(C6<=0, 0, C5/MAX(C6,1)) -> 285 | D7: =IF(D6<=0, 0, D5/MAX(D6,1)) -> 26.66666667 | E7: =IF(E6<=0, 0, E5/MAX(E6,1)) -> 26 | F7: =IF(F6<=0, 0, F5/MAX(F6,1)) -> 3.4 | H7: =IF(H6<=0, 0, H5/MAX(H6,1)) -> 9.333333333 | I7: =IF(I6<=0, 0, I5/MAX(I6,1)) -> 28
B12: Available | D12: Sailor | E12: Cargo | F12: Anchor | G12: Stars | H12: on/off | J12: Upgrades | M12: Gold | N12: Wood | O12: Steel | P12: Stone
B13: La Pinta | D13: 40 | E13: 7 | F13: 1 | G13: 5 | H13: 1 | J13: HMS Woolwich | M13: 20000 | N13: 9000 | O13: 800
B14: Santa Maria | D14: 30 | E14: 5 | F14: 1 | G14: 5 | H14: 1 | J14: Den Rode Love | M14: 28800 | N14: 12800 | P14: 1600
B15: Santa Maria | D15: 30 | E15: 5 | F15: 1 | G15: 5 | H15: 1 | J15: Warehouse | L15: 355 | N15: 1200 | O15: 300 | P15: 1000 | R15: 30 | S15: =L15+R15 -> 385 | T15: 400
B16: La Grace | D16: 15 | E16: 4 | F16: 1 | G16: 5 | H16: 1
B17: Cara Merchant | D17: 60 | E17: 21 | F17: 1 | G17: 1 | H17: 1
D28: =SUMPRODUCT(D13:D27,$H13:$H27) -> 175 | E28: =SUMPRODUCT(E13:E27,$H13:$H27) -> 42 | F28: =SUMPRODUCT(F13:F27,$H13:$H27) -> 5 | G28: =SUMPRODUCT(G13:G27,$H13:$H27) -> 21 | H28: =SUMPRODUCT(H13:H27,$H13:$H27) -> 5
B31: Enroute | D31: Sailor | E31: Cargo | F31: Anchor | G31: Stars | H31: on/off | J31: Purchase | L31: Level | M31: Gold | N31: Wood | O31: Steel | P31: Peg Leg | R31: Sailor | S31: Cargo | T31: Anchor | U31: Stars
B32: HMS Royal James | D32: 90 | E32: 29 | F32: 1 | G32: 5 | H32: 1 | J32: Cythera | L32: 60 | M32: 19000 | N32: 5000 | O32: 0 | P32: 977 | R32: 100 | S32: 42 | T32: 1 | U32: 5
B33: Anne's Revenge | D33: 90 | E33: 29 | F33: 1 | G33: 5 | H33: 1 | R33: 110 | S33: 57 | T33: 1 | U33: 5
B34: HMS Woolwich | D34: 60 | E34: 24 | F34: 1 | G34: 2 | H34: 1
B35: Den Rode Love | D35: 80 | E35: 21 | F35: 1 | G35: 4 | H35: 1
B36: Peter Von Danzig | D36: 50 | E36: 12 | F36: 1 | G36: 5 | H36: 1 | J36: Captains | L36: Voyages | M36: Sailor | N36: Cargo | O36: Steel
B37: Venetian | D37: 50 | E37: 10 | F37: 1 | G37: 5 | H37: 1 | J37: Drew Carrymore | L37: 10 | N37: 50
B38: Roland Von Bremen | D38: 50 | E38: 8 | F38: 1 | G38: 5 | H38: 1 | J38: Drew Carrymore | L38: 10 | N38: 30
B39: La Pensee | D39: 200 | E39: 7 | F39: 1 | G39: 5 | H39: 1 | J39: Daniel Steel | L39: 10 | O39: 1.5
B40: La Pinta | D40: 40 | E40: 7 | F40: 1 | G40: 5 | H40: 1 | J40: Sailor Swift | L40: 8 | M40: 40
J41: Sailor Swift | L41: 10 | M41: 25
D44: =SUM(D32:D39) -> 670 | E44: =SUM(E32:E39) -> 140 | F44: =SUM(F32:F39) -> 8 | G44: =SUM(G32:G39) -> 36 | H44: =SUM(H32:H39) -> 8
F45: 9
F46: =F45-F44 -> 1

Sheet Sheet2

Sheet Sheet3
